bitfinex/quotes_BTCUSD_20241216
["timestamp","ask_amount","ask_price","bid_price","bid_amount"]
[1734360051037,87.41743158,105000.0,104990.0,8.33995546]
[1734360051319,87.3831799,105000.0,104990.0,8.4932561]
[1734360051525,86.90781968,105000.0,104990.0,8.4932561]
[1734360051732,86.66631844,105000.0,104990.0,8.4932561]
[1734360051932,86.14353178,105000.0,104990.0,8.50078531]
[1734360052143,86.07240762,105000.0,104990.0,8.48151918]
[1734360052357,86.07240762,105000.0,104990.0,8.58031918]
[1734360052575,85.5970474,105000.0,104990.0,8.58031918]
[1734360052867,85.11073322,105000.0,104990.0,8.58031918]
[1734360053377,84.635373,105000.0,104990.0,7.98836524]
[1734360053587,84.635373,105000.0,104990.0,7.65570014]
[1734360053588,84.16001278,105000.0,104990.0,7.65570014]
[1734360054012,84.01740472,105000.0,104990.0,7.73908282]
[1734360054289,84.01740472,105000.0,104990.0,7.6354989]
[1734360054561,84.01740472,105000.0,104990.0,7.84186901]
[1734360054981,83.50360255,105000.0,104990.0,7.30576901]
[1734360055841,83.50360255,105000.0,104990.0,7.32876901]
[1734360056053,83.36105542,105000.0,104990.0,7.32876901]
[1734360056295,83.25211542,105000.0,104990.0,7.32876901]
[1734360056540,83.06870542,105000.0,104990.0,7.1223989]
[1734360056792,82.79666542,105000.0,104990.0,7.9911539]
[1734360057030,82.61956542,105000.0,104990.0,7.9911539]
[1734360057243,82.26542217,105000.0,104990.0,8.58900295]
[1734360057479,82.26542217,105000.0,104990.0,8.72494217]
[1734360057480,82.15452361,105000.0,104990.0,8.72494217]
[1734360057686,82.15452361,105000.0,104990.0,8.35896123]
[1734360057687,81.50305996,105000.0,104990.0,8.35896123]
[1734360057893,81.50305996,105000.0,104990.0,8.34114285]
[1734360058416,81.50305996,105000.0,104990.0,8.01022532]
[1734360058785,81.45850996,105000.0,104990.0,7.41271759]
[1734360058996,81.31596283,105000.0,104990.0,7.74537169]
[1734360060029,81.29412283,105000.0,104990.0,7.74537169]
[1734360060642,81.28900587,105000.0,104990.0,7.74537169]
[1734360060841,81.13693103,105000.0,104990.0,7.74537169]
[1734360061049,80.47164992,105000.0,104990.0,7.46448996]
[1734360061265,78.51778097,105000.0,104990.0,7.74537169]
[1734360061476,76.69124742,105000.0,104990.0,7.74537169]
[1734360061697,76.68520459,105000.0,104990.0,7.74537169]
[1734360061905,76.68520459,105000.0,104990.0,7.95141798]
[1734360062111,76.68520459,105000.0,104990.0,7.95141491]
[1734360062112,76.62604459,105000.0,104990.0,7.95141491]
[1734360062744,76.62604459,105000.0,104990.0,7.41531491]
[1734360063156,76.48350899,105000.0,104990.0,7.41528089]
[1734360063371,76.48350899,105000.0,104990.0,7.12591809]
[1734360063581,76.48350899,105000.0,104990.0,6.71087276]
[1734360063793,76.48350899,105000.0,104990.0,6.66087329]
[1734360064000,76.48350899,105000.0,104990.0,6.72844117]
[1734360064212,76.48089373,105000.0,104990.0,6.76964041]
[1734360064624,76.48089373,105000.0,104990.0,7.12564961]
[1734360064826,76.48089373,105000.0,104990.0,7.47874041]
[1734360065030,76.46628019,105000.0,104990.0,7.47874041]
[1734360065236,76.461511,105000.0,104990.0,7.47874041]
[1734360065440,76.461511,105000.0,104990.0,7.60235353]
[1734360065637,76.461511,105000.0,104990.0,7.47874041]
[1734360065786,76.461511,105000.0,104990.0,7.55235597]
[1734360066052,76.461511,105000.0,104990.0,7.35235597]
[1734360066253,76.461511,105000.0,104990.0,7.18753315]
[1734360066456,76.461511,105000.0,104990.0,7.05284552]
[1734360066709,76.461511,105000.0,104990.0,6.92922996]
[1734360067250,76.461511,105000.0,104990.0,6.72957375]
[1734360067462,76.461511,105000.0,104990.0,6.85595819]
[1734360067664,76.461511,105000.0,104990.0,7.2710185]
[1734360068075,76.03509343,105000.0,104990.0,7.52464198]
[1734360068336,74.84289358,105000.0,104990.0,7.31220488]
[1734360068600,74.45767156,105000.0,104990.0,7.31220488]
[1734360068832,73.82051739,105000.0,104990.0,7.31220488]
[1734360069114,73.44015991,105000.0,104990.0,7.31220488]
[1734360069315,72.69837689,105000.0,104990.0,7.47704758]
[1734360069530,72.69837689,105000.0,104990.0,6.93819586]
[1734360069747,72.34137077,105000.0,104990.0,6.93819586]
[1734360069963,72.03983035,105000.0,104990.0,7.30940612]
[1734360070171,72.0031409,105000.0,104990.0,6.93819011]
[1734360070389,72.0031409,105000.0,104990.0,6.77330612]
[1734360070830,72.0031409,105000.0,104990.0,6.93824475]
[1734360071267,72.0031409,105000.0,104990.0,6.45230709]
[1734360071480,72.0031409,105000.0,104990.0,5.92891919]
[1734360071685,72.0031409,105000.0,104990.0,5.99475369]
[1734360071894,72.0031409,105000.0,104990.0,6.02746652]
[1734360072542,72.0031409,105000.0,104990.0,6.15122252]
[1734360072960,72.0031409,105000.0,104990.0,6.02746652]
[1734360073164,72.0031409,105000.0,104990.0,5.97746652]
[1734360073365,72.0031409,105000.0,104990.0,6.02746652]
[1734360073566,72.0031409,105000.0,104990.0,6.17746652]
[1734360073983,72.1255409,105000.0,104990.0,5.62438207]
[1734360074192,72.1255409,105000.0,104990.0,5.7808509]
[1734360075236,72.1255409,105000.0,104990.0,5.89417723]
[1734360075662,72.1255409,105000.0,104990.0,5.69417723]
[1734360075877,0.1224862,105000.0,104990.0,5.4877084]
[1734360076094,65.97564983,104950.0,104940.0,0.4060092]
[1734360076355,65.97564983,104950.0,104940.0,0.2]
[1734360076563,65.97564983,104950.0,104940.0,0.10047753]
[1734360076771,65.97564983,104950.0,104940.0,0.10047759]
[1734360076977,65.97564983,104950.0,104940.0,0.19476829]
[1734360077628,65.97564983,104950.0,104940.0,0.35123712]
[1734360077838,65.97564983,104950.0,104930.0,0.1713364]
[1734360077839,66.10014983,104950.0,104930.0,0.1713364]
[1734360078097,66.10014983,104950.0,104940.0,0.25123752]
[1734360078301,66.10014983,104950.0,104940.0,0.31119721]
[1734360078971,66.10014983,104950.0,104940.0,0.1442907]
[1734360079177,66.07018983,104950.0,104940.0,0.0942907]
[1734360079613,66.07018983,104950.0,104930.0,0.00016761]
[1734360079813,66.07018983,104950.0,104930.0,0.09445831]
[1734360079814,0.1265,104940.0,104930.0,0.09445831]
[1734360080027,0.1265,104940.0,104930.0,0.30140531]
[1734360080244,0.1265,104940.0,104930.0,0.30092714]
[1734360080655,0.1265,104940.0,104930.0,0.31136482]
[1734360081325,0.1265,104940.0,104930.0,0.46136482]
[1734360081526,0.1265,104940.0,104930.0,0.45092714]
[1734360081732,0.1265,104940.0,104930.0,0.40075953]
[1734360081937,0.1265,104940.0,104930.0,0.2442907]
[1734360082346,0.1265,104940.0,104930.0,0.25075953]
[1734360082767,0.1265,104940.0,104920.0,0.01504406]
[1734360082972,0.12666718,104940.0,104920.0,0.01504406]
[1734360083191,0.12666718,104940.0,104930.0,0.00047825]
[1734360083399,0.12666718,104940.0,104920.0,0.31580359]
[1734360083626,0.12666718,104940.0,104920.0,0.10933476]
[1734360083841,0.12666718,104940.0,104920.0,0.01504406]
[1734360084044,0.12666718,104940.0,104920.0,0.17151289]
[1734360084465,0.12666718,104940.0,104930.0,0.0001726]
[1734360084675,0.12670718,104940.0,104930.0,0.0001726]
[1734360085137,0.12670718,104940.0,104930.0,0.15664143]
[1734360085359,0.12670718,104940.0,104930.0,0.46184804]
[1734360085565,0.12670718,104940.0,104930.0,0.48436981]
[1734360085774,0.00020718,104940.0,104930.0,0.45093213]
[1734360085997,0.00020718,104940.0,104930.0,0.2944633]
[1734360086207,0.00020718,104940.0,104930.0,0.2444633]
[1734360086434,0.00020718,104940.0,104930.0,0.2944633]
[1734360086648,0.00020718,104940.0,104930.0,0.45093213]
[1734360087068,0.00020718,104940.0,104930.0,0.40093213]
[1734360087282,0.00020718,104940.0,104930.0,0.45093213]
[1734360087944,0.00020718,104940.0,104930.0,0.2944633]
[1734360088566,0.00020718,104940.0,104930.0,0.2]
[1734360088772,65.44426243,104900.0,104890.0,0.4185421]
[1734360089239,65.44008117,104900.0,104890.0,0.4334172]
[1734360089442,65.44008117,104900.0,104890.0,0.44829514]
[1734360089655,65.35042886,104900.0,104890.0,0.98752001]
[1734360090078,65.35042886,104900.0,104890.0,0.98807908]
[1734360090288,65.35042886,104900.0,104890.0,1.30101674]
[1734360090496,65.00473685,104900.0,104890.0,2.5164741]
[1734360090708,61.88459242,104900.0,104890.0,2.5164741]
[1734360090916,61.88459242,104900.0,104890.0,3.03760607]
[1734360090917,61.50398682,104900.0,104890.0,3.03760607]
[1734360091112,60.7372456,104900.0,104890.0,3.03760607]
[1734360091282,59.97594925,104900.0,104890.0,2.72228485]
[1734360091489,59.51254309,104900.0,104890.0,2.72228485]
[1734360091740,58.69723326,104900.0,104890.0,2.74105573]
[1734360091942,57.91779019,104900.0,104890.0,2.52036988]
[1734360092150,57.5371285,104900.0,104890.0,2.7410238]
[1734360092365,57.15649984,104900.0,104890.0,2.72225292]
[1734360092558,57.04107414,104900.0,104890.0,2.25023491]
[1734360092900,55.19434975,104900.0,104890.0,1.86490103]
[1734360093102,54.09701233,104900.0,104890.0,1.51553546]
[1734360093304,52.95515141,104900.0,104890.0,1.51553546]
[1734360093507,52.57454574,104900.0,104890.0,1.51487743]
[1734360093716,52.19394015,104900.0,104890.0,1.51487743]
[1734360093922,51.80337014,104900.0,104890.0,1.26804545]
[1734360094123,51.79336585,104900.0,104890.0,1.26804545]
[1734360094327,51.41276026,104900.0,104890.0,1.26804545]
[1734360094536,51.0321546,104900.0,104890.0,1.26804545]
[1734360094736,50.65154894,104900.0,104890.0,1.26804545]
[1734360094910,50.27094328,104900.0,104890.0,1.26804545]
[1734360095111,50.26093891,104900.0,104890.0,1.26804545]
[1734360095365,49.88033332,104900.0,104890.0,1.26804545]
[1734360095581,49.49972766,104900.0,104890.0,1.26804545]
[1734360095800,48.73851634,104900.0,104890.0,1.57302437]
[1734360096405,48.73851634,104900.0,104890.0,1.57319717]
[1734360096908,48.73860274,104900.0,104890.0,1.57319717]
[1734360097116,48.73860274,104900.0,104890.0,1.73785941]
[1734360097726,48.73860274,104900.0,104890.0,1.53208049]
[1734360098158,48.73860274,104900.0,104890.0,1.73785941]
[1734360098362,48.73860274,104900.0,104890.0,1.60074441]
[1734360098567,48.73860274,104900.0,104890.0,2.50470041]
[1734360098778,48.73860274,104900.0,104890.0,2.29892149]
[1734360098979,48.73860274,104900.0,104890.0,2.14892149]
[1734360099204,48.73860274,104900.0,104890.0,1.70712849]
[1734360099811,48.73860274,104900.0,104890.0,0.98987282]
[1734360100036,48.73860274,104900.0,104890.0,0.82521058]
[1734360100238,48.73860274,104900.0,104890.0,1.07454458]
[1734360100462,48.73860274,104900.0,104890.0,1.20600341]
[1734360100697,48.73860274,104900.0,104890.0,1.37066565]
[1734360100904,48.73860274,104900.0,104890.0,1.39708949]
[1734360101111,48.52923347,104900.0,104890.0,1.01664753]
[1734360101315,48.41503198,104900.0,104890.0,1.13964753]
[1734360101531,48.41503198,104900.0,104890.0,0.82455145]
[1734360101780,48.41078506,104900.0,104890.0,1.02052036]
[1734360101987,48.41078506,104900.0,104890.0,0.73087404]
[1734360102204,48.41078506,104900.0,104890.0,0.50787404]
[1734360102442,48.41078506,104900.0,104890.0,0.35923646]
[1734360102674,48.31545506,104900.0,104890.0,0.24364979]
[1734360102885,48.31545506,104900.0,104890.0,0.20560579]
[1734360103358,48.23919106,104900.0,104890.0,0.04913696]
[1734360103567,48.34352506,104900.0,104890.0,0.04813696]
[1734360104955,48.24819506,104900.0,104890.0,0.04813696]
[1734360105179,48.24819506,104900.0,104890.0,0.37760579]
[1734360105388,48.10838153,104900.0,104890.0,0.71058839]
[1734360105596,48.10838153,104900.0,104890.0,0.81058839]
[1734360106031,48.10838153,104900.0,104890.0,0.65411956]
[1734360106717,48.10838153,104900.0,104890.0,0.22113696]
[1734360107173,48.10838153,104900.0,104890.0,0.32113696]
[1734360107382,48.10838153,104900.0,104890.0,0.55411866]
[1734360107798,48.10838153,104900.0,104890.0,0.22113696]
[1734360108009,48.10838153,104900.0,104890.0,0.19813696]
[1734360108456,48.10838153,104900.0,104890.0,0.29813696]
[1734360108658,48.10838153,104900.0,104890.0,0.64516652]
[1734360108859,48.09280653,104900.0,104890.0,0.64516652]
[1734360109284,48.09280653,104900.0,104890.0,0.7275763]
[1734360109490,48.09280653,104900.0,104890.0,0.87417639]
[1734360109904,48.09280653,104900.0,104890.0,0.7505763]
[1734360110115,48.09280653,104900.0,104890.0,0.87417639]
[1734360110531,48.09280653,104900.0,104890.0,1.03883863]
[1734360110972,48.09280653,104900.0,104890.0,1.16220777]
[1734360111370,48.09280653,104900.0,104890.0,1.03860768]
[1734360111785,48.09280653,104900.0,104890.0,1.00286804]
[1734360111991,48.09280653,104900.0,104890.0,1.20864696]
[1734360112245,48.09280653,104900.0,104890.0,1.08476142]
[1734360113086,48.09280653,104900.0,104890.0,0.94544714]
[1734360113291,48.09280653,104900.0,104890.0,0.73966822]
[1734360113507,48.09280653,104900.0,104890.0,0.83966822]
[1734360113712,48.09280653,104900.0,104890.0,1.1926552]
[1734360113915,47.68816293,104900.0,104890.0,1.1926552]
[1734360114127,47.45866627,104900.0,104890.0,1.1926552]
[1734360114336,46.77352139,104900.0,104890.0,1.19375046]
[1734360114535,46.39291373,104900.0,104890.0,1.19375046]
[1734360114749,45.88418677,104900.0,104890.0,1.19375046]
[1734360115020,44.58887025,104900.0,104890.0,1.03902322]
[1734360115241,44.03450369,104900.0,104890.0,1.03902322]
[1734360115452,43.63583658,104900.0,104890.0,1.03902322]
[1734360115661,43.42521947,104900.0,104890.0,1.03902322]
[1734360115885,43.32675776,104900.0,104890.0,1.03902322]
[1734360116091,43.21980542,104900.0,104890.0,1.3167092]
[1734360116311,42.74398872,104900.0,104890.0,1.03902322]
[1734360116526,42.73858475,104900.0,104890.0,1.2937092]
[1734360116740,42.53478094,104900.0,104890.0,1.01602322]
[1734360117405,42.51574912,104900.0,104890.0,0.86602322]
[1734360117837,42.49410412,104900.0,104890.0,0.86602322]
[1734360118040,42.49410412,104900.0,104890.0,0.88902322]
[1734360118459,42.47507237,104900.0,104890.0,0.88902322]
[1734360118688,42.47507237,104900.0,104890.0,1.03902322]
[1734360118901,42.28475473,104900.0,104890.0,1.03902322]
[1734360119112,42.09446475,104900.0,104890.0,1.03902322]
[1734360119328,42.09446475,104900.0,104890.0,1.03919602]
[1734360119778,42.09446475,104900.0,104890.0,1.40616885]
[1734360119983,42.09446475,104900.0,104890.0,1.40619134]
[1734360120185,42.09446475,104900.0,104890.0,1.03919602]
[1734360120403,42.09446475,104900.0,104890.0,1.40628281]
[1734360120609,42.09446475,104900.0,104890.0,1.71929419]
[1734360120827,42.09446475,104900.0,104890.0,1.71928502]
[1734360121255,41.86608356,104900.0,104890.0,1.3522074]
[1734360121462,41.86608356,104900.0,104890.0,1.71935166]
[1734360121674,41.86608356,104900.0,104890.0,1.3522074]
[1734360122531,41.81929352,104900.0,104890.0,1.3522074]
[1734360122740,41.31506164,104900.0,104890.0,1.3522074]
[1734360122917,41.29360619,104900.0,104890.0,1.3522074]
[1734360123122,41.28047266,104900.0,104890.0,1.3522074]
[1734360123321,41.07112325,104900.0,104890.0,1.3522074]
[1734360123671,41.07112325,104900.0,104890.0,1.3461524]
[1734360123880,41.07112325,104900.0,104890.0,5.6896674]
[1734360124085,41.0631038,104900.0,104890.0,5.72807739]
[1734360124667,41.0391038,104900.0,104890.0,5.72807739]
[1734360125199,41.0391038,104900.0,104890.0,5.31663039]
[1734360125390,41.0391038,104900.0,104890.0,6.00205245]
[1734360125391,40.93652504,104900.0,104890.0,6.00205245]
[1734360125632,40.54622388,104900.0,104890.0,6.00205245]
[1734360125773,40.50522584,104900.0,104890.0,5.72248404]
[1734360125988,39.55090333,104900.0,104890.0,5.62819334]
[1734360126200,37.74979218,104900.0,104890.0,5.62819334]
[1734360126413,36.50717124,104900.0,104890.0,5.62819334]
[1734360126636,35.72641113,104900.0,104890.0,5.62819334]
[1734360126871,35.48755408,104900.0,104890.0,6.14819634]
[1734360127090,35.04364408,104900.0,104890.0,6.14819634]
[1734360127305,34.42048635,104900.0,104890.0,6.64239131]
[1734360127498,32.73259239,104900.0,104890.0,2.89105537]
[1734360127789,30.85698042,104900.0,104890.0,2.80509254]
[1734360128000,29.82938124,104900.0,104890.0,3.10433644]
[1734360128204,28.71684829,104900.0,104890.0,2.80887602]
[1734360128409,28.59438795,104900.0,104890.0,2.85917757]
[1734360128589,28.59438795,104900.0,104890.0,2.96945261]
[1734360128590,26.29765695,104900.0,104890.0,2.96945261]
[1734360128828,26.16863053,104900.0,104890.0,3.0078626]
[1734360129034,25.7732876,104900.0,104890.0,3.0078626]
[1734360129242,25.24128252,104900.0,104890.0,3.0078626]
[1734360129448,23.17723949,104900.0,104890.0,2.72935537]
[1734360129714,22.06151426,104900.0,104890.0,2.69094538]
[1734360129965,21.03939669,104900.0,104890.0,2.96928747]
[1734360130219,20.54465731,104900.0,104890.0,3.00769746]
[1734360130422,19.55844034,104900.0,104890.0,3.00769746]
[1734360130633,19.55844034,104900.0,104890.0,2.72935537]
[1734360130634,18.24020243,104900.0,104890.0,2.72935537]
[1734360130846,18.24020243,104900.0,104890.0,2.69094538]
[1734360130847,17.50103935,104900.0,104890.0,2.69094538]
[1734360131028,16.36320055,104900.0,104890.0,2.69094538]
[1734360131276,15.58547965,104900.0,104890.0,3.4458989]
[1734360131481,15.2014693,104900.0,104890.0,3.48430889]
[1734360131690,14.6303784,104900.0,104890.0,3.20602537]
[1734360131892,14.23902043,104900.0,104890.0,4.9409047]
[1734360132096,13.85852189,104900.0,104890.0,4.5599417]
[1734360132297,13.85852189,104900.0,104890.0,4.28750151]
[1734360132480,13.09756663,104900.0,104890.0,4.28750151]
[1734360132727,13.06564594,104900.0,104890.0,3.9593635]
[1734360132932,12.68517541,104900.0,104890.0,3.77776344]
[1734360133135,12.3046768,104900.0,104890.0,3.77776344]
[1734360133337,11.92417819,104900.0,104890.0,3.75718409]
[1734360133543,11.92417819,104900.0,104890.0,4.13502211]
[1734360133744,11.92417819,104900.0,104890.0,4.13500454]
[1734360134128,11.92417819,104900.0,104890.0,4.30800454]
[1734360134335,11.92417819,104900.0,104890.0,2.19732254]
[1734360134539,11.92417819,104900.0,104890.0,5.75737654]
[1734360134742,11.92417819,104900.0,104890.0,5.27885723]
[1734360134887,11.92417819,104900.0,104890.0,5.37045399]
[1734360135102,11.83851348,104900.0,104890.0,5.02295408]
[1734360135308,11.32085982,104900.0,104890.0,5.29539427]
[1734360135533,10.94355717,104900.0,104890.0,5.2266613]
[1734360135735,10.92869004,104900.0,104890.0,5.2266613]
[1734360135890,10.83322325,104900.0,104890.0,5.7266613]
[1734360136093,10.7380825,104900.0,104890.0,7.1441363]
[1734360136320,10.71905435,104900.0,104890.0,7.1441363]
[1734360136532,10.67511964,104900.0,104890.0,6.70183291]
[1734360136739,10.59916248,104900.0,104890.0,6.70183291]
[1734360136937,10.54141968,104900.0,104890.0,6.70183291]
[1734360137139,10.2689795,104900.0,104890.0,6.70183291]
[1734360137408,10.2689795,104900.0,104890.0,2.18223391]
[1734360137409,9.66772008,104900.0,104890.0,2.18223391]
[1734360137677,8.17921685,104900.0,104890.0,2.42184393]
[1734360137880,7.58911216,104900.0,104890.0,2.1438208]
[1734360138085,7.47885146,104900.0,104890.0,2.1438208]
[1734360138302,6.28441578,104900.0,104890.0,2.1438208]
[1734360138515,5.13061788,104900.0,104890.0,2.2439208]
[1734360138710,5.10973343,104900.0,104890.0,2.2439208]
[1734360138927,4.71066727,104900.0,104890.0,2.52178765]
[1734360139130,4.32507728,104900.0,104890.0,2.52178765]
[1734360139352,3.48819121,104900.0,104890.0,2.2439208]
[1734360139557,2.66574221,104900.0,104890.0,2.2439208]
[1734360139767,2.32331996,104900.0,104890.0,2.2439208]
[1734360139971,2.15211235,104900.0,104890.0,2.2439208]
[1734360140173,1.63848049,104900.0,104890.0,2.2439208]
[1734360140378,1.46727287,104900.0,104890.0,2.2439208]
[1734360140582,1.12484862,104900.0,104890.0,2.2439208]
[1734360140827,0.60015733,104900.0,104890.0,2.2439208]
[1734360141032,0.19765684,104900.0,104890.0,2.2439208]
[1734360141357,4e-05,104940.0,104930.0,0.35]
[1734360141600,4e-05,104940.0,104930.0,2.6288039]
[1734360141813,4e-05,104940.0,104930.0,2.90124409]
[1734360142023,4e-05,104940.0,104930.0,3.87931903]
[1734360142642,0.00059769,104940.0,104930.0,3.87931903]
[1734360142925,0.00059769,104940.0,104930.0,3.89841902]
[1734360143127,0.00059769,104940.0,104930.0,3.92141902]
[1734360143326,0.00059769,104940.0,104930.0,3.55713339]
[1734360143938,0.00059769,104940.0,104930.0,3.05713339]
[1734360144139,0.00059769,104940.0,104930.0,2.7846932]
[1734360144340,0.00059769,104940.0,104930.0,2.76410389]
[1734360144958,0.00059769,104940.0,104930.0,2.89831616]
[1734360145369,0.00059769,104940.0,104930.0,2.91890547]
[1734360146004,0.00059769,104940.0,104930.0,2.68909401]
[1734360146212,0.00059769,104940.0,104930.0,2.94094489]
[1734360146643,0.00059769,104940.0,104930.0,3.32581983]
[1734360146862,0.00059769,104940.0,104930.0,3.4615342]
[1734360147534,0.00059769,104940.0,104930.0,3.82581983]
[1734360147772,0.00059769,104940.0,104930.0,3.49935491]
[1734360149103,0.00059769,104940.0,104930.0,3.36364054]
[1734360149520,0.00059769,104940.0,104930.0,2.72691472]
[1734360149741,0.00059769,104940.0,104930.0,1.35153772]
[1734360149954,0.0591262,105000.0,104990.0,0.35]
[1734360150189,0.0540302,105000.0,104990.0,0.6085065]
[1734360150436,0.04780854,105000.0,104990.0,2.628428]
[1734360150656,0.04780854,105000.0,104990.0,2.89253905]
[1734360151082,0.04780854,105000.0,104990.0,2.64621534]
[1734360151301,0.04780854,105000.0,104990.0,3.00992769]
[1734360151506,0.04780854,105000.0,104990.0,3.030517]
[1734360151718,0.04780854,105000.0,104990.0,3.053517]
[1734360151934,0.03485356,105000.0,104990.0,3.05642696]
[1734360152139,0.03485356,105000.0,104990.0,3.030517]
[1734360152349,0.03485356,105000.0,104990.0,3.0483286]
[1734360152999,0.11385356,105000.0,104990.0,3.0483286]
[1734360153825,0.10885356,105000.0,104990.0,3.0483286]
[1734360154459,0.10885356,105000.0,104990.0,2.2356506]
[1734360154695,0.10885356,105000.0,104990.0,2.19724969]
[1734360154903,0.10885356,105000.0,104990.0,1.83353734]
[1734360155350,0.10885356,105000.0,104990.0,2.19724969]
[1734360156004,0.10893996,105000.0,104990.0,1.81575]
[1734360156216,0.10893996,105000.0,104990.0,2.06241713]
[1734360156630,0.10893996,105000.0,104990.0,1.81575]
[1734360156853,0.10893996,105000.0,104990.0,2.17946235]
[1734360157273,0.10893996,105000.0,104990.0,1.81575]
[1734360158141,0.10893996,105000.0,104990.0,1.83484999]
[1734360158577,0.10893996,105000.0,104990.0,2.1995132]
[1734360158817,0.10893996,105000.0,104990.0,1.83484999]
[1734360159480,0.10893996,105000.0,104990.0,1.92125101]
[1734360160099,0.06618608,105000.0,104990.0,1.92125101]
[1734360160517,0.06618608,105000.0,104990.0,1.94519501]
[1734360161170,0.06618608,105000.0,104990.0,1.67505701]
[1734360161380,0.06618608,105000.0,104990.0,1.40750252]
[1734360161800,0.06618608,105000.0,104990.0,1.38840253]
[1734360162817,0.06618608,105000.0,104990.0,1.50595702]
[1734360163234,0.11328608,105000.0,104990.0,1.50595702]
[1734360163439,0.11328608,105000.0,104990.0,1.65595702]
[1734360164262,0.11328608,105000.0,104990.0,1.65663467]
[1734360164638,0.11328608,105000.0,104990.0,1.291058]
[1734360165085,0.13328608,105000.0,104990.0,1.291058]
[1734360165934,0.13328608,105000.0,104990.0,1.449843]
[1734360166142,0.13328608,105000.0,104990.0,1.431412]
[1734360166761,0.13328608,105000.0,104990.0,1.773898]
[1734360166971,0.13328608,105000.0,104990.0,1.394265]
[1734360167175,0.13328608,105000.0,104990.0,1.3944376]
[1734360167393,0.13328608,105000.0,104990.0,1.2912306]
[1734360167596,0.13328608,105000.0,104990.0,1.4195556]
[1734360167808,0.13328608,105000.0,104990.0,1.2912306]
[1734360168056,0.13328608,105000.0,104990.0,1.1969399]
[1734360168251,0.13328608,105000.0,104990.0,1.1589329]
[1734360168460,0.13332608,105000.0,104990.0,1.0589329]
[1734360168880,0.13332608,105000.0,104990.0,0.8308329]
[1734360169088,0.13332608,105000.0,104990.0,0.7027329]
[1734360170340,0.13332608,105000.0,104990.0,0.4826929]
[1734360170553,0.13332608,105000.0,104990.0,0.5826929]
[1734360170758,0.13332608,105000.0,104990.0,1.05625369]
[1734360171416,0.13336608,105000.0,104990.0,1.05625369]
[1734360171615,0.13336608,105000.0,104990.0,1.05657089]
[1734360171829,0.13340608,105000.0,104990.0,1.31998089]
[1734360172294,0.13344608,105000.0,104990.0,1.0403936]
[1734360172481,0.13344608,105000.0,104990.0,0.7769836]
[1734360172722,0.13348608,105000.0,104990.0,0.8882546]
[1734360173208,0.08642608,105000.0,104990.0,0.7769836]
[1734360173426,0.0203664,105000.0,104990.0,2.1523606]
[1734360173887,0.0204064,105000.0,104990.0,2.59952249]
[1734360174321,0.0204464,105000.0,104990.0,2.1523606]
[1734360174752,0.0204864,105000.0,104990.0,2.1523606]
[1734360175603,0.0204864,105000.0,104990.0,2.59952249]
[1734360175816,0.0204864,105000.0,104990.0,2.62252249]
[1734360176235,0.0204864,105000.0,104990.0,2.1753606]
[1734360176457,0.0010862,105110.0,105020.0,0.1]
[1734360176662,0.0010862,105110.0,105090.0,0.24818858]
[1734360176663,0.0942907,105100.0,105090.0,0.24818858]
[1734360176877,0.0942907,105100.0,105070.0,0.35326595]
[1734360177089,0.0942907,105090.0,105060.0,0.05]
[1734360177304,0.0942907,105090.0,105050.0,0.15]
[1734360177510,0.05,105060.0,105050.0,0.05]
[1734360177719,0.05,105060.0,105050.0,0.00402921]
[1734360177928,0.09892704,105060.0,105050.0,0.00402921]
[1734360178140,0.05,105050.0,105030.0,0.2]
[1734360178364,0.1442907,105040.0,105030.0,0.15]
[1734360178575,0.14892141,105040.0,105030.0,0.15]
[1734360178785,0.14908892,105040.0,105030.0,0.15]
[1734360178998,0.14445821,105040.0,105030.0,0.15]
[1734360179214,0.14908572,105040.0,105030.0,0.15]
[1734360179430,0.15308572,105040.0,105030.0,0.15]
[1734360182229,0.05,105020.0,105010.0,0.07175802]
[1734360182446,0.05,105020.0,105010.0,0.40433932]
[1734360182657,0.030963,105020.0,105010.0,0.40433932]
[1734360182865,0.13687569,105040.0,105010.0,0.07175802]
[1734360183096,0.13687569,105040.0,105030.0,0.36735921]
[1734360183307,0.13287569,105040.0,105030.0,0.36735921]
[1734360183542,0.13287569,105040.0,105030.0,0.52063063]
[1734360183753,0.13287569,105040.0,105030.0,0.52060312]
[1734360183962,0.13287569,105040.0,105030.0,0.15327142]
[1734360184396,0.13287569,105040.0,105030.0,0.15]
[1734360184609,0.13287569,105040.0,105030.0,0.51735143]
[1734360185042,0.13287569,105040.0,105030.0,0.36735143]
[1734360185252,0.13287569,105040.0,105020.0,0.2]
[1734360185503,0.13287569,105040.0,105020.0,0.20327142]
[1734360185714,0.030963,105030.0,105020.0,0.20327142]
[1734360185924,0.03858499,105040.0,105020.0,0.53583022]
[1734360186135,0.030963,105030.0,105020.0,0.2]
[1734360186353,0.030963,105030.0,105020.0,0.53419491]
[1734360186599,0.03858499,105040.0,105020.0,0.81542315]
[1734360186829,0.06958799,105040.0,105030.0,0.27959253]
[1734360187092,0.023,105070.0,105040.0,0.15]
[1734360187308,0.030963,105050.0,105040.0,0.42977525]
[1734360187520,0.0942907,105050.0,105040.0,0.43304667]
[1734360187941,0.02355824,105070.0,105040.0,0.43304667]
[1734360188153,0.030963,105050.0,105040.0,0.42977525]
[1734360188409,0.02728266,105050.0,105040.0,0.15]
[1734360188620,0.02728266,105060.0,105040.0,0.5325068]
[1734360188843,0.02728266,105060.0,105040.0,0.3]
[1734360189266,0.00338566,105070.0,105060.0,0.1]
[1734360189475,0.00338566,105070.0,105060.0,0.42951013]
[1734360189681,0.09767636,105070.0,105060.0,0.42951013]
[1734360190559,0.00055824,105070.0,105060.0,0.42951013]
[1734360190987,0.00055824,105070.0,105060.0,0.81195203]
[1734360191704,0.00055824,105070.0,105060.0,0.76195203]
[1734360191915,0.00055824,105070.0,105060.0,0.42951013]
[1734360192135,0.00059824,105070.0,105060.0,0.57951013]
[1734360192351,0.00059824,105070.0,105060.0,0.6324409]
[1734360193011,0.00059824,105070.0,105060.0,0.65821729]
[1734360193219,0.00059824,105070.0,105060.0,0.50821729]
[1734360193402,0.00059824,105070.0,105060.0,0.78748051]
[1734360193651,0.00059824,105070.0,105060.0,0.65821369]
[1734360193837,0.00059824,105070.0,105060.0,0.50821369]
[1734360193965,0.00059824,105070.0,105060.0,0.55504692]
[1734360194364,0.00059824,105070.0,105060.0,0.60504692]
[1734360194584,0.00059824,105070.0,105060.0,0.93743713]
[1734360194797,0.00059824,105070.0,105060.0,0.77352589]
[1734360195217,0.00059824,105070.0,105060.0,9.77352589]
[1734360196210,0.00059824,105070.0,105060.0,9.7477495]
[1734360196949,0.00059824,105070.0,105060.0,10.19565233]
[1734360197763,0.00059824,105070.0,105060.0,10.28994303]
[1734360197966,0.00059824,105070.0,105060.0,10.38994303]
[1734360198168,0.000359,105070.0,105060.0,10.45343903]
[1734360198383,0.0001263,105100.0,105080.0,0.1]
[1734360198582,0.00029373,105100.0,105090.0,0.42869227]
[1734360199404,0.00029373,105100.0,105090.0,0.42855469]
[1734360200313,0.08114363,105110.0,105090.0,0.42855044]